fUSD/lending_fUSD_20241119
["ID","MTS","AMOUNT","RATE_DAILY","PERIOD"]
[342656568,1732027850246,-150.0,0.00011499,5]
[342656569,1732027850258,-150.0,0.000115,5]
[342656571,1732027850267,-2544.06,0.00011507,2]
[342656573,1732027850276,-2751.0,0.00011507,2]
[342656575,1732027850286,-150.0,0.00011536,2]
[342656576,1732027850294,-500.0,0.00011642,2]
[342656577,1732027850303,-3000.0,0.000117,2]
[342656578,1732027850314,-152.06,0.00011732,2]
[342656579,1732027850326,-150.0,0.00011735,2]
[342656580,1732027850335,-150.0,0.00011744,2]
[342656581,1732027850344,-150.0,0.0001175,2]
[342656582,1732027850353,-150.0,0.0001175,2]
[342656583,1732027850362,-150.0,0.00011754,2]
[342656584,1732027850372,-150.0,0.00011755,2]
[342656585,1732027850381,-150.0,0.00011756,2]
[342656586,1732027850390,-150.0,0.0001176,2]
[342656588,1732027850403,-150.0,0.00011773,2]
[342656590,1732027850412,-150.0,0.00011775,2]
[342656592,1732027850422,-150.0,0.00011776,2]
[342656594,1732027850432,-150.0,0.0001178,2]
[342656596,1732027850441,-150.0,0.00011781,2]
[342656598,1732027850450,-150.0,0.00011786,2]
[342656600,1732027850459,-150.0,0.0001179,2]
[342656602,1732027850468,-150.0,0.00011795,2]
[342656605,1732027850487,-150.0,0.00011798,2]
[342656607,1732027850500,-150.0,0.00011799,2]
[342656609,1732027850510,-150.0,0.00011808,2]
[342656611,1732027850520,-150.0,0.0001181,2]
[342656613,1732027850530,-150.0,0.0001181,2]
[342656615,1732027850540,-150.0,0.00011811,2]
[342656618,1732027850551,-150.0,0.00011812,2]
[342656620,1732027850561,-150.0,0.00011824,2]
[342656622,1732027850571,-150.0,0.00011824,2]
[342656624,1732027850581,-150.0,0.00011825,2]
[342656626,1732027850590,-150.0,0.0001183,2]
[342656628,1732027850601,-150.0,0.0001184,2]
[342656630,1732027850610,-1500.0,0.0001184,2]
[342656632,1732027850620,-811.90835205,0.00011853,2]
[342656634,1732027850630,-150.0,0.00011857,2]
[342656636,1732027850640,-1500.0,0.00011858,2]
[342656638,1732027850651,-150.0,0.00011859,2]
[342656640,1732027850660,-150.0,0.00011862,2]
[342656642,1732027850670,-150.0,0.00011865,2]
[342656645,1732027850686,-150.0,0.00011878,2]
[342656647,1732027850696,-1500.0,0.00011881,2]
[342656649,1732027850706,-1500.0,0.00011884,2]
[342656651,1732027850715,-150.0,0.00011885,2]
[342656653,1732027850725,-15462.954272,0.00011888,2]
[342656655,1732027850734,-150.0,0.00011899,2]
[342656657,1732027850744,-150.0,0.000119,2]
[342656659,1732027850759,-783.31605628,0.000119,2]
[342656661,1732027850768,-150.0,0.00011905,2]
[342656664,1732027850778,-150.0,0.00011906,2]
[342656666,1732027850788,-150.0,0.00011909,2]
[342656668,1732027850798,-150.0,0.00011915,2]
[342656670,1732027850807,-500.0,0.00011916,2]
[342656672,1732027850818,-150.0,0.00011919,2]
[342656674,1732027850828,-150.0,0.00011921,2]
[342656676,1732027850838,-150.0,0.00011921,2]
[342656678,1732027850849,-150.0,0.00011922,2]
[342656680,1732027850859,-150.0,0.00011923,2]
[342656682,1732027850869,-150.0,0.00011927,2]
[342656684,1732027850880,-150.0,0.00011932,2]
[342656687,1732027850890,-150.0,0.00011937,2]
[342656689,1732027850901,-150.0,0.00011943,2]
[342656691,1732027850911,-150.0,0.00011943,2]
[342656693,1732027850921,-150.0,0.00011952,2]
[342656695,1732027850931,-150.0,0.00011953,2]
[342656697,1732027850941,-150.0,0.00011958,2]
[342656699,1732027850952,-150.0,0.00011963,2]
[342656701,1732027850962,-150.0,0.00011965,2]
[342656703,1732027850972,-150.0,0.00011965,2]
[342656705,1732027850983,-150.0,0.00011968,2]
[342656707,1732027850992,-150.0,0.00011969,2]
[342656709,1732027851009,-652.17239335,0.00011969,2]
[342656711,1732027851019,-150.0,0.0001197,2]
[342656713,1732027851029,-150.0,0.00011972,2]
[342656715,1732027851038,-150.0,0.00011976,2]
[342656717,1732027851049,-150.0,0.00011976,2]
[342656718,1732027851058,-150.0,0.00011978,2]
[342656720,1732027851068,-150.0,0.00011982,2]
[342656723,1732027851078,-150.0,0.00011986,2]
[342656724,1732027851087,-150.0,0.00011988,2]
[342656726,1732027851097,-150.0,0.0001199,2]
[342656729,1732027851106,-150.0,0.00011991,2]
[342656731,1732027851119,-150.0,0.00011991,2]
[342656733,1732027851128,-150.0,0.00011994,2]
[342656735,1732027851138,-150.0,0.00011995,2]
[342656737,1732027851147,-150.0,0.00011998,2]
[342656739,1732027851157,-19013.11850823,0.00012,2]
[342656741,1732027851166,-333.61195187,0.00012,2]
[342656743,1732027851175,-500.0,0.00012,2]
[342656745,1732027851185,-500.0,0.00012,2]
[342656747,1732027851195,-1711.19972382,0.00012,2]
[342656749,1732027851205,-2000.0,0.00012,2]
[342656751,1732027851215,-2000.0,0.00012,2]
[342656753,1732027851224,-196.73104271,0.00012,2]
[342656755,1732027851233,-4911.73070744,0.00012,2]
[342656757,1732027851243,-10005.95053024,0.00012,2]
[342656759,1732027851256,-623.0,0.00012,2]
[342656761,1732027851266,-1450.0,0.00012,2]
[342656763,1732027851275,-520.2004,0.00012,2]
[342656765,1732027851285,-520.2004,0.00012,2]
[342656767,1732027851294,-3272.2524,0.00012,2]
[342656769,1732027851303,-3272.2524,0.00012,2]
[342656771,1732027851313,-6668.8068,0.00012,2]
[342656774,1732027851324,-1952.4361,0.00012,2]
[342656776,1732027851336,-1952.4361,0.00012,2]
[342656778,1732027851346,-600.0,0.00012,2]
[342656780,1732027851355,-150.0,0.00012005,2]
[342656782,1732027851364,-150.0,0.00012005,2]
[342656784,1732027851375,-150.0,0.00012006,2]
[342656786,1732027851384,-447.48640307,0.00012012,2]
[342656788,1732027851394,-160.20028232,0.00012012,2]
[342656790,1732027851404,-150.0,0.00012012,2]
[342656792,1732027851414,-150.0,0.00012012,2]
[342656794,1732027851425,-195.78455287,0.00012012,2]
[342656796,1732027851435,-150.0,0.00012012,2]
[342656798,1732027851444,-150.0,0.00012012,2]
[342656800,1732027851456,-150.0,0.00012012,2]
[342656802,1732027851466,-150.0,0.00012012,2]
[342656804,1732027851475,-150.0,0.00012012,2]
[342656806,1732027851485,-150.0,0.00012012,2]
[342656808,1732027851494,-150.0,0.00012012,2]
[342656810,1732027851508,-150.0,0.00012012,2]
[342656812,1732027851517,-150.0,0.00012012,2]
[342656814,1732027851527,-603.95,0.00012033,2]
[342656816,1732027851537,-2544.06,0.00012055,2]
[342656818,1732027851547,-44987.59,0.00012055,2]
[342656820,1732027851558,-150.0,0.0001208,3]
[342656822,1732027851569,-201.6,0.000121,2]
[342656824,1732027851578,-196.0,0.000121,2]
[342656826,1732027851587,-150.0,0.00012112,2]
[342656828,1732027851597,-895.23,0.00012125,2]
[342656830,1732027851606,-500.0,0.0001219,2]
[342656832,1732027851615,-783.31605628,0.00012233,2]
[342656835,1732027851625,-212.04,0.0001225,2]
[342656836,1732027851634,-1000.0,0.00012289,2]
[342656839,1732027851644,-447.48640307,0.00012306,2]
[342656841,1732027851654,-160.20028232,0.00012306,2]
[342656843,1732027851665,-195.78455287,0.00012306,2]
[342656845,1732027851676,-3000.0,0.0001232,2]
[342656847,1732027851687,-500.0,0.00012328,2]
[342656849,1732027851696,-500.0,0.00012328,2]
[342656851,1732027851706,-500.0,0.00012328,2]
[342656853,1732027851715,-500.0,0.00012328,2]
[342656855,1732027851725,-500.0,0.00012328,2]
[342656857,1732027851734,-500.0,0.00012328,2]
[342656859,1732027851743,-500.0,0.00012328,2]
[342656861,1732027851756,-150.82087188,0.00012328,2]
[342656863,1732027851766,-500.0,0.00012328,2]
[342656865,1732027851776,-500.0,0.00012328,2]
[342656867,1732027851785,-500.0,0.00012328,2]
[342656869,1732027851795,-500.0,0.00012328,2]
[342656871,1732027851804,-540.93616273,0.00012328,2]
[342656873,1732027851814,-222.398169,0.00012329,2]
[342656875,1732027851823,-151.0,0.00012329,2]
[342656876,1732027851833,-151.0,0.00012329,2]
[342656879,1732027851842,-151.0,0.00012329,2]
[342656881,1732027851852,-151.0,0.00012329,2]
[342656882,1732027851862,-167.488161,0.00012329,2]
[342656884,1732027851872,-167.488161,0.00012329,2]
[342656886,1732027851881,-151.0,0.00012329,2]
[342656888,1732027851891,-374.435502,0.00012329,2]
[342656890,1732027851900,-374.435502,0.00012329,2]
[342656892,1732027851909,-2142.500908,0.00012329,2]
[342656894,1732027851919,-2142.500908,0.00012329,2]
[342656896,1732027851928,-302.433536,0.00012329,2]
[342656898,1732027851938,-302.433536,0.00012329,2]
[342656900,1732027851947,-151.0,0.00012329,2]
[342656902,1732027851956,-469.63876,0.00012329,2]
[342656904,1732027851966,-469.63876,0.00012329,2]
[342656906,1732027851975,-219.846201,0.00012329,2]
[342656908,1732027851984,-219.846201,0.00012329,2]
[342656910,1732027851995,-151.0,0.00012329,2]
[342656912,1732027852009,-102710.42,0.00012329,2]
[342656914,1732027852021,-151.0,0.00012329,2]
[342656916,1732027852030,-150.0,0.00012401,2]
[342656918,1732027852040,-603.95,0.00012458,2]
[342656920,1732027852049,-500.0,0.00012464,2]
[342656922,1732027852058,-173.0,0.00012493,2]
[342656924,1732027852068,-292.60665263,0.000125,2]
[342656926,1732027852077,-400.0,0.000125,2]
[342656928,1732027852086,-623.0,0.000125,2]
[342656930,1732027852096,-783.31605628,0.00012567,2]
[342656932,1732027852106,-1058.71,0.0001258,2]
[342656934,1732027852115,-447.48640307,0.000126,2]
[342656936,1732027852124,-160.20028232,0.000126,2]
[342656938,1732027852133,-195.78455287,0.000126,2]
[342656940,1732027852142,-2544.06,0.00012603,2]
[342656942,1732027852152,-150.0,0.00012689,2]
[342656944,1732027852164,-500.0,0.00012738,2]
[342656946,1732027852174,-150.0,0.00012758,2]
[342656948,1732027852183,-152.06,0.00012799,2]
[342656950,1732027852192,-603.95,0.00012884,2]
[342656952,1732027852201,-447.48640307,0.00012893,2]
[342656954,1732027852211,-160.20028232,0.00012893,2]
[342656956,1732027852220,-195.78455287,0.00012893,2]
[342656958,1732027852229,-16160.50444291,0.000129,2]
[342656960,1732027852238,-783.31605628,0.000129,2]
[342656962,1732027852247,-3000.0,0.0001295,2]
[342656964,1732027852260,-150.0,0.00012978,2]
[342656966,1732027852269,-813.82588049,0.00013,2]
[342656968,1732027852278,-4212.45848244,0.00013,2]
[342656970,1732027852287,-500.0,0.00013,3]
[342656972,1732027852297,-500.0,0.00013,3]
[342656974,1732027852306,-500.0,0.00013,3]
[342656976,1732027852315,-500.0,0.00013,3]
[342656983,1732027852393,-500.0,0.00013,3]
[342656984,1732027852402,-5738.1130148,0.00013,2]
[342656985,1732027852412,-150.0,0.00013,2]
[342656986,1732027852421,-150.0,0.00013,2]
[342656987,1732027852430,-623.0,0.00013,2]
[342656988,1732027852439,-564.0,0.00013,2]
[342656989,1732027852448,-1256.0,0.00013,2]
[342656990,1732027852457,-560.0,0.00013,2]
[342656991,1732027852466,-150.0,0.00013,2]
[342656992,1732027852476,-1994.0,0.00013,2]
[342656994,1732027852485,-1926.0,0.00013,2]
[342656996,1732027852494,-3747.0,0.00013,2]
[342656998,1732027852508,-814.0,0.00013,2]
[342657000,1732027852517,-920.0,0.00013,2]
[342657002,1732027852527,-1260.0,0.00013,2]
[342657004,1732027852536,-3513.0,0.00013,2]
[342657006,1732027852545,-150.0,0.00013,2]
[342657008,1732027852554,-5938.0,0.00013,2]
[342657010,1732027852563,-10051.044,0.00013,2]
[342657012,1732027852573,-150.0,0.00013,2]
[342657014,1732027852582,-346.501,0.00013,2]
[342657016,1732027852591,-500.0,0.00013012,2]
[342657018,1732027852600,-5086.04252855,0.0001305,2]
[342657020,1732027852609,-150.0,0.00013089,2]
[342657022,1732027852619,-151.0,0.00013151,2]
[342657024,1732027852628,-2544.06,0.00013151,2]
[342657026,1732027852637,-447.48640307,0.00013187,2]
[342657028,1732027852645,-160.20028232,0.00013187,2]
[342657030,1732027852655,-195.78455287,0.00013187,2]
[342657032,1732027852664,-895.23,0.00013227,2]
[342657034,1732027852673,-150.0,0.00013266,2]
[342657036,1732027852682,-500.0,0.00013286,2]
[342657038,1732027852691,-603.95,0.0001331,2]
[342657040,1732027852700,-1000.0,0.00013406,2]
[342657042,1732027852708,-150.0,0.0001342,3]
[342657044,1732027852718,-500.0,0.00013424,2]
[342657046,1732027852727,-500.0,0.00013424,2]
[342657048,1732027852736,-500.0,0.00013424,2]
[342657050,1732027852746,-500.0,0.00013424,2]
[342657052,1732027852759,-500.0,0.00013424,2]
[342657053,1732027852768,-500.0,0.00013424,2]
[342657055,1732027852777,-500.0,0.00013424,2]
[342657057,1732027852786,-500.0,0.00013424,2]
[342657059,1732027852795,-500.0,0.00013424,2]
[342657061,1732027852804,-371.74,0.00013424,2]
[342657063,1732027852814,-3203.45,0.00013425,2]
[342657065,1732027852823,-150.0,0.00013466,2]
[342657067,1732027852832,-447.48640307,0.00013481,2]
[342657069,1732027852842,-160.20028232,0.00013481,2]
[342657071,1732027852851,-195.78455287,0.00013481,2]
[342657073,1732027852860,-1000.0,0.000135,2]
[342657075,1732027852870,-623.0,0.000135,2]
[342657077,1732027852880,-150.0,0.00013503,2]
[342657079,1732027852889,-150.0,0.00013554,2]
[342657082,1732027852899,-500.0,0.0001356,2]
[342657083,1732027852908,-1161.29,0.00013661,7]
[342657085,1732027852918,-1161.29,0.00013661,7]
[342657087,1732027852926,-1161.29,0.00013661,7]
[342657089,1732027852936,-1161.29,0.00013661,7]
[342657091,1732027852944,-700.0,0.00013698,2]
[342657094,1732027852955,-700.0,0.00013698,2]
[342657096,1732027852964,-700.0,0.00013698,2]
[342657098,1732027852973,-700.0,0.00013698,2]
[342657100,1732027852982,-700.0,0.00013698,2]
[342657102,1732027852991,-700.0,0.00013698,2]
[342657104,1732027853004,-700.0,0.00013698,2]
[342657106,1732027853014,-700.0,0.00013698,2]
[342657108,1732027853024,-700.0,0.00013698,2]
[342657110,1732027853034,-700.0,0.00013698,2]
[342657112,1732027853044,-700.0,0.00013698,2]
[342657114,1732027853054,-700.0,0.00013698,2]
[342657116,1732027853063,-700.0,0.00013698,2]
[342657118,1732027853072,-700.0,0.00013698,2]
[342657120,1732027853081,-700.0,0.00013698,2]
[342657122,1732027853090,-700.0,0.00013698,2]
[342657124,1732027853099,-700.0,0.00013698,2]
[342657126,1732027853108,-700.0,0.00013698,2]
[342657128,1732027853118,-700.0,0.00013698,2]
[342657130,1732027853127,-700.0,0.00013698,2]
[342657132,1732027853136,-700.0,0.00013698,2]
[342657134,1732027853145,-700.0,0.00013698,2]
[342657135,1732027853154,-700.0,0.00013698,2]
[342657137,1732027853164,-603.99737894,0.00013698,2]
[342657139,1732027853173,-1773.44,0.00013698,10]
[342657141,1732027853182,-1773.44,0.00013698,10]
[342657143,1732027853191,-1773.44,0.00013698,10]
[342657145,1732027853199,-1773.44,0.00013698,10]
[342657147,1732027853208,-1773.44,0.00013698,10]
[342657149,1732027853217,-1773.44,0.00013698,10]
[342657151,1732027853226,-1773.44,0.00013698,10]
[342657153,1732027853235,-1773.44,0.00013698,10]
[342657155,1732027853244,-1773.44,0.00013698,10]
[342657157,1732027853255,-1773.44,0.00013698,10]
[342657159,1732027853264,-1773.44,0.00013698,10]
[342657161,1732027853272,-1773.44,0.00013698,10]
[342657163,1732027853282,-1773.44,0.00013698,10]
[342657165,1732027853291,-1773.44,0.00013698,10]
[342657167,1732027853301,-1773.44,0.00013698,10]
[342657169,1732027853310,-1773.44,0.00013698,10]
[342657171,1732027853319,-1773.44,0.00013698,10]
[342657173,1732027853331,-1773.44,0.00013698,10]
[342657175,1732027853340,-1773.44,0.00013698,10]
[342657177,1732027853349,-1773.44,0.00013698,10]
[342657179,1732027853357,-1773.44,0.00013698,10]
[342657181,1732027853367,-1773.44,0.00013698,10]
[342657183,1732027853376,-1773.44,0.00013698,10]
[342657185,1732027853385,-1773.57179197,0.00013698,10]
[342657186,1732027853394,-4869.76,0.00013698,2]
[342657188,1732027853404,-2000.0,0.00013698,2]
[342657190,1732027853413,-2000.0,0.00013698,2]
[342657192,1732027853422,-2000.0,0.00013698,2]
[342657194,1732027853431,-2000.0,0.00013698,2]
[342657196,1732027853440,-2000.0,0.00013698,2]
[342657198,1732027853449,-2000.0,0.00013698,2]
[342657200,1732027853458,-2000.0,0.00013698,2]
[342657202,1732027853467,-2000.0,0.00013698,2]
[342657204,1732027853476,-2000.0,0.00013698,2]
[342657206,1732027853485,-2000.0,0.00013698,2]
[342657208,1732027853495,-2000.0,0.00013698,2]
[342657210,1732027853506,-2000.0,0.00013698,2]
[342657212,1732027853515,-2000.0,0.00013698,2]
[342657214,1732027853524,-2000.0,0.00013698,2]
[342657216,1732027853534,-2000.0,0.00013698,2]
[342657218,1732027853542,-2000.0,0.00013698,2]
[342657220,1732027853552,-2000.0,0.00013698,2]
[342657222,1732027853561,-2000.0,0.00013698,2]
[342657224,1732027853570,-2000.0,0.00013698,2]
[342657226,1732027853579,-2000.0,0.00013698,2]
[342657228,1732027853588,-2000.0,0.00013698,2]
[342657230,1732027853597,-1593.53313197,0.00013698,2]
[342657232,1732027853606,-1593.26,0.00013698,2]
[342657234,1732027853615,-1593.26,0.00013698,2]
[342657236,1732027853624,-1593.26,0.00013698,2]
[342657238,1732027853633,-1593.26,0.00013698,2]
[342657240,1732027853642,-1593.26,0.00013698,2]
[342657242,1732027853651,-1593.26,0.00013698,2]
[342657244,1732027853661,-1593.26,0.00013698,2]
[342657246,1732027853670,-1593.26,0.00013698,2]
[342657248,1732027853679,-1593.26,0.00013698,2]
[342657249,1732027853688,-1593.26,0.00013698,2]
[342657251,1732027853697,-1593.26,0.00013698,2]
[342657253,1732027853706,-1593.26,0.00013698,2]
[342657255,1732027853715,-1593.26,0.00013698,2]
[342657257,1732027853724,-1593.26,0.00013698,2]
[342657259,1732027853733,-1593.26,0.00013698,2]
[342657261,1732027853743,-1593.26,0.00013698,2]
[342657263,1732027853756,-1593.26,0.00013698,2]
[342657265,1732027853765,-1593.26,0.00013698,2]
[342657267,1732027853774,-1593.26,0.00013698,2]
[342657269,1732027853783,-1593.26,0.00013698,2]
[342657271,1732027853793,-1593.26,0.00013698,2]
[342657273,1732027853802,-1593.26,0.00013698,2]
[342657275,1732027853812,-1593.26,0.00013698,2]
[342657277,1732027853820,-1593.44964851,0.00013698,2]
[342657279,1732027853830,-1000.0,0.00013698,2]
[342657281,1732027853840,-1000.0,0.00013698,2]
[342657283,1732027853850,-1000.0,0.00013698,2]
[342657285,1732027853860,-1003.62080573,0.00013698,2]
[342657287,1732027853869,-330.34758615,0.00013698,2]
[342657289,1732027853878,-2000.0,0.00013698,2]
[342657290,1732027853888,-2000.0,0.00013698,2]
[342657292,1732027853897,-2000.0,0.00013698,2]
[342657294,1732027853906,-2000.0,0.00013698,2]
[342657296,1732027853915,-2000.0,0.00013698,2]
[342657298,1732027853924,-2000.0,0.00013698,2]
[342657300,1732027853933,-2000.0,0.00013698,2]
[342657302,1732027853943,-2000.0,0.00013698,2]
[342657304,1732027853953,-2000.0,0.00013698,2]
[342657306,1732027853963,-2000.0,0.00013698,2]
[342657308,1732027853972,-2000.0,0.00013698,2]
[342657311,1732027853983,-2000.0,0.00013698,2]
[342657313,1732027853993,-2000.0,0.00013698,2]
[342657315,1732027854007,-2000.0,0.00013698,2]
[342657317,1732027854016,-2000.0,0.00013698,2]
[342657319,1732027854026,-2000.0,0.00013698,2]
[342657321,1732027854035,-2000.0,0.00013698,2]
[342657322,1732027854045,-2000.0,0.00013698,2]
[342657324,1732027854054,-2000.0,0.00013698,2]
[342657326,1732027854063,-2000.0,0.00013698,2]
[342657328,1732027854072,-1707.52915762,0.00013698,2]
[342657330,1732027854081,-500.0,0.00013698,2]
[342657332,1732027854091,-500.0,0.00013698,2]
[342657334,1732027854100,-500.0,0.00013698,2]
[342657336,1732027854109,-500.0,0.00013698,2]
[342657338,1732027854119,-258.13816875,0.00013698,2]
[342657340,1732027854128,-500.0,0.00013699,2]
[342657342,1732027854137,-500.0,0.00013699,2]
[342657344,1732027854147,-500.0,0.00013699,2]
[342657346,1732027854156,-500.0,0.00013699,2]
[342657348,1732027854165,-500.0,0.00013699,2]
[342657350,1732027854174,-200.0,0.00013699,2]
[342657352,1732027854183,-500.0,0.00013699,2]
[342657354,1732027854193,-500.0,0.00013699,2]
[342657356,1732027854202,-500.0,0.00013699,2]
[342657358,1732027854211,-500.0,0.00013699,2]
[342657360,1732027854222,-500.0,0.00013699,2]
[342657362,1732027854231,-500.0,0.00013699,2]
[342657364,1732027854240,-500.0,0.00013699,2]
[342657366,1732027854249,-506.04971842,0.00013699,2]
[342657368,1732027854262,-800.0,0.00013699,2]
[342657370,1732027854271,-800.0,0.00013699,2]
[342657371,1732027854280,-800.0,0.00013699,2]
[342657372,1732027854288,-800.0,0.00013699,2]
[342657373,1732027854297,-800.0,0.00013699,2]
[342657374,1732027854306,-800.0,0.00013699,2]
[342657375,1732027854315,-800.0,0.00013699,2]
[342657376,1732027854324,-800.0,0.00013699,2]
[342657377,1732027854337,-800.0,0.00013699,2]
[342657378,1732027854346,-800.0,0.00013699,2]
[342657379,1732027854355,-800.0,0.00013699,2]
[342657381,1732027854364,-800.0,0.00013699,2]
[342657383,1732027854373,-800.0,0.00013699,2]
[342657385,1732027854382,-800.0,0.00013699,2]
[342657387,1732027854392,-800.0,0.00013699,2]
[342657389,1732027854401,-200.0,0.00013699,2]
[342657391,1732027854413,-800.0,0.00013699,2]
[342657393,1732027854423,-800.0,0.00013699,2]
[342657394,1732027854432,-214.55,0.00013699,2]
[342657397,1732027854442,-800.0,0.00013699,2]
[342657398,1732027854452,-31552.32,0.00013699,2]
[342657400,1732027854461,-800.0,0.00013699,2]
[342657402,1732027854470,-800.0,0.00013699,2]
[342657404,1732027854479,-9758.03,0.00013699,2]
[342657406,1732027854488,-500.0,0.00013699,2]
[342657408,1732027854498,-800.0,0.00013699,2]
[342657410,1732027854511,-257.95,0.00013699,2]
[342657413,1732027854520,-800.0,0.00013699,2]
[342657414,1732027854530,-2362.37,0.00013699,2]
[342657417,1732027854539,-516.87,0.00013699,2]
[342657418,1732027854548,-800.0,0.00013699,2]
[342657420,1732027854558,-800.0,0.00013699,2]
[342657422,1732027854567,-501.13544497,0.00013699,2]
[342657424,1732027854576,-500.0,0.00013699,2]
[342657427,1732027854586,-500.0,0.00013699,2]
[342657428,1732027854595,-299.38171931,0.00013699,2]
[342657430,1732027854605,-500.0,0.00013699,2]
[342657433,1732027854615,-162.46633542,0.00013699,2]
[342657434,1732027854624,-500.0,0.00013699,2]
[342657437,1732027854634,-313.10145444,0.00013699,2]
[342657438,1732027854643,-526.21996416,0.00013699,2]
[342657440,1732027854652,-500.0,0.00013699,2]
[342657442,1732027854662,-500.0,0.00013699,2]
[342657444,1732027854671,-514.22480475,0.00013699,2]
[342657446,1732027854680,-205.43809301,0.00013699,2]
[342657448,1732027854689,-513.1679238,0.00013699,2]
[342657450,1732027854698,-162.22298149,0.00013699,2]
[342657452,1732027854707,-160.19394207,0.00013699,2]
[342657454,1732027854717,-400.95377702,0.00013699,2]
[342657456,1732027854727,-400.0,0.00013699,2]
[342657458,1732027854736,-400.0,0.00013699,2]
[342657460,1732027854745,-400.0,0.00013699,2]
[342657462,1732027854756,-400.0,0.00013699,2]
[342657464,1732027854765,-200.71743201,0.00013699,2]
[342657466,1732027854774,-400.0,0.00013699,2]
[342657468,1732027854783,-400.0,0.00013699,2]
[342657470,1732027854792,-400.0,0.00013699,2]
[342657471,1732027854803,-479.64311511,0.00013699,2]
[342657473,1732027854812,-500.0,0.000137,2]
[342657475,1732027854822,-500.0,0.000137,2]
[342657477,1732027854831,-7021.76,0.000137,2]
[342657479,1732027854840,-7021.76,0.000137,2]
[342657481,1732027854851,-7021.76,0.000137,2]
[342657483,1732027854864,-7021.76,0.000137,2]
[342657485,1732027854873,-7021.76,0.000137,2]
[342657487,1732027854882,-603.95,0.00013735,2]
[342657489,1732027854891,-447.48640307,0.00013775,2]
[342657491,1732027854900,-160.20028232,0.00013775,2]
[342657493,1732027854909,-195.78455287,0.00013775,2]
[342657495,1732027854918,-775.83944286,0.00013814,2]
[342657497,1732027854928,-500.0,0.00013834,2]
[342657499,1732027854937,-4869.76,0.00013835,2]
[342657501,1732027854946,-150.0,0.00013843,2]
[342657503,1732027854955,-1161.29,0.00013934,7]
[342657505,1732027854964,-1161.29,0.00013934,7]
[342657507,1732027854974,-4869.76,0.00013972,2]
[342657509,1732027854983,-868.93,0.00013978,2]
[342657511,1732027854992,-269.32382287,0.00014,2]
[342657513,1732027855002,-623.0,0.00014,2]
[342657515,1732027855016,-1500.0,0.00014,2]
[342657517,1732027855025,-5000.0,0.00014037,2]
[342657519,1732027855035,-27911.8,0.0001405,2]
[342657521,1732027855043,-5000.0,0.00014063,2]
[342657523,1732027855053,-447.48640307,0.00014068,2]
[342657525,1732027855062,-160.20028232,0.00014068,2]
[342657527,1732027855071,-195.78455287,0.00014068,2]
[342657529,1732027855081,-25000.0,0.00014076,2]
[342657531,1732027855090,-151.0,0.00014076,2]
[342657532,1732027855100,-400.0,0.00014084,2]
[342657534,1732027855109,-400.0,0.00014084,2]
[342657536,1732027855118,-5000.0,0.00014085,2]
[342657538,1732027855127,-25000.0,0.00014085,2]
[342657540,1732027855136,-5000.0,0.00014088,2]